Department family,Entity,Date,Expense type,Expense area,Supplier,Transaction number,   Amount   ,VAT registration number
"Department for Culture, Media & Sport",UK Sport,12/10/2020,Grant,World Class Operations,Sport Resolutions UK,21085909," 71,250.00 ",
"Department for Culture, Media & Sport",UK Sport,12/10/2020,Grant,EIS- Investment,English Institute of Sport Company,21085914," 3,185,655.00 ",
"Department for Culture, Media & Sport",UK Sport,12/10/2020,Grant,Performance additions to WCPP,English Institute of Sport Company,21085915," 76,404.00 ",
"Department for Culture, Media & Sport",UK Sport,12/10/2020,Grant,EIS- Investment,English Institute of Sport Company,21085919," 46,984.00 ",
"Department for Culture, Media & Sport",UK Sport,12/10/2020,Grant,Performance additions to WCPP,English Institute of Sport Company,21085921," 35,718.00 ",
"Department for Culture, Media & Sport",UK Sport,12/10/2020,Grant,Summer - Olympic,Grand National Archery Society,21085922," 110,000.00 ",
"Department for Culture, Media & Sport",UK Sport,12/10/2020,Grant,Summer - Olympic,Royal Yachting Association,21085923," 300,000.00 ",
"Department for Culture, Media & Sport",UK Sport,12/10/2020,Grant,Summer - Olympic,British Fencing Association,21085924," 33,000.00 ",
"Department for Culture, Media & Sport",UK Sport,12/10/2020,Grant,Summer - Olympic,British Cycling Federation,21085926," 297,285.00 ",
"Department for Culture, Media & Sport",UK Sport,12/10/2020,Grant,Summer - Paralympic,Badminton England,21085927," 29,465.00 ",
"Department for Culture, Media & Sport",UK Sport,12/10/2020,Grant,Summer - Olympic,British Swimming,21085930," 28,763.00 ",
"Department for Culture, Media & Sport",UK Sport,12/10/2020,Grant,Summer - Olympic,British Rowing,21085932," 357,955.00 ",
"Department for Culture, Media & Sport",UK Sport,12/10/2020,Grant,Summer - Olympic,England Hockey,21085935," 155,176.00 ",
"Department for Culture, Media & Sport",UK Sport,12/10/2020,Grant,Summer - Olympic,British Gymnastics,21085936," 156,698.00 ",
"Department for Culture, Media & Sport",UK Sport,12/10/2020,Grant,Summer - Olympic,British Equestrian Federation,21085937," 200,000.00 ",
"Department for Culture, Media & Sport",UK Sport,12/10/2020,Grant,Summer - Olympic,British Amateur Boxing Association Ltd,21085939," 86,481.00 ",
"Department for Culture, Media & Sport",UK Sport,12/10/2020,Grant,Summer - Olympic,Uk Athletics,21085942," 427,454.00 ",
"Department for Culture, Media & Sport",UK Sport,12/10/2020,Grant,Performance additions to WCPP,English Institute of Sport Company,21085943," 72,868.00 ",
"Department for Culture, Media & Sport",UK Sport,12/10/2020,Grant,Summer - Paralympic,GB Taekwondo,21085947," 36,070.00 ",
"Department for Culture, Media & Sport",UK Sport,12/10/2020,Grant,World Class Operations,Sports Coach UK,21085951," 75,000.00 ",
"Department for Culture, Media & Sport",UK Sport,12/10/2020,Grant,Summer - Olympic,British Weight Lifting - Olympic,21085952," 30,000.00 ",
"Department for Culture, Media & Sport",UK Sport,12/10/2020,Grant,EIS- Investment,English Institute of Sport Company,21085953," 577,183.00 ",
"Department for Culture, Media & Sport",UK Sport,12/10/2020,Grant,Performance additions to WCPP,English Institute of Sport Company,21085954," 68,446.00 ",
"Department for Culture, Media & Sport",UK Sport,12/10/2020,Grant,EIS- Investment,English Institute of Sport Company,21085958," 112,669.00 ",
"Department for Culture, Media & Sport",UK Sport,12/10/2020,Grant,Summer - Olympic,British Judo Association,21085962," 86,000.00 ",
"Department for Culture, Media & Sport",UK Sport,12/10/2020,Grant,Performance additions to WCPP,English Institute of Sport Company,21085964," 35,080.00 ",
"Department for Culture, Media & Sport",UK Sport,12/10/2020,Grant,Summer - Olympic,British Canoeing,21085967," 189,328.00 ",
"Department for Culture, Media & Sport",UK Sport,12/10/2020,Grant,Performance additions to WCPP,English Institute of Sport Company,21085968," 42,500.00 ",
"Department for Culture, Media & Sport",UK Sport,12/10/2020,Grant,Summer - Olympic,England Hockey,21085969," 90,000.00 ",
"Department for Culture, Media & Sport",UK Sport,12/10/2020,Grant,Aspiration  - Olympic,Grand National Archery Society,21085970," 44,756.00 ",
"Department for Culture, Media & Sport",UK Sport,12/10/2020,Grant,WC Events Programme,Rugby League World Cup 2021 Limited,10881," 2,000,000.00 ",
"Department for Culture, Media & Sport",UK Sport,12/10/2020,Grant,WC Events Programme,The Football Association,10882," 180,420.00 ",
"Department for Culture, Media & Sport",UK Sport,12/10/2020,Grant,International Relations,Commonwealth Sports Foundation,10884," 45,000.00 ",
"Department for Culture, Media & Sport",UK Sport,19/10/2020,Grant,Summer - Olympic,British Cycling Federation,10887," 500,000.00 ",
"Department for Culture, Media & Sport",UK Sport,25/09/2020,Programme,Governance Programme,NSPCC  C.P.T.G,31071," 26,649.56 ",
"Department for Culture, Media & Sport",UK Sport,05/10/2020,Programme,Governance Programme,NSPCC  C.P.T.G,31148," 26,649.56 ",
"Department for Culture, Media & Sport",UK Sport,14/10/2020,Security/Backup/Recovery,ICT Managed Services,Darktrace Limited,31141," 44,127.05 ",
